[Event "Lliga Catalana Relegation 2024"]
[Site "Catalonia"]
[Date "2024.03.16"]
[Round "1.4"]
[White "Del Amo Carbo, Jordi"]
[Black "Pozanco Romasanta, Marc"]
[Result "0-1"]
[ECO "E14"]
[WhiteElo "2098"]
[BlackElo "2021"]
[Annotator "NA RC"]
[PlyCount "108"]
[EventDate "2024.01.18"]
[EventType "team-tourn"]
[EventCountry "ESP"]
[SourceTitle "playchess.com"]
[Source "ChessBase"]
[SourceQuality "1"]
[TimeControl "5400+30"]

1. d4 {[%emt 0:00:04]} d5 {[%emt 0:04:57]} 2. c4 {[%emt 0:00:10]} e6 {[%emt 0:00:16]} 3. Nc3 {[%emt 0:00:07]} Nf6 {[%emt 0:00:05]} 4. Nf3 {[%emt 0:00:10]} Be7 {[%emt 0:00:08]} 5. e3 {[%emt 0:00:10]} O-O {[%emt 0:00:15]} 6. Bd3 {[%emt 0:00:12]} Nbd7 {[%emt 0:03:44]} 7. O-O {[%emt 0:00:17]} b6 {[%emt 0:01:06]} 8. cxd5 {[%emt 0:02:36]} exd5 {[%emt 0:00:06]} 9. b3 {[%emt 0:00:54]} Bb7 {[%emt 0:00:33]} 10. Bb2 {[%emt 0:00:38]} Re8 {[%emt 0:03:57]} 11. Rc1 {[%emt 0:01:29]} a6 {[%emt 0:11:21]} 12. Bb1 {[%emt 0:04:14]} Bd6 {[%emt 0:01:24]} 13. Ne2 {[%emt 0:02:53]} Ne4 {[%emt 0:03:29]} 14. Ng3 {[%emt 0:01:00]} Qf6 {[%emt 0:10:27]} 15. Qc2 {[%emt 0:05:37]} Rac8 {[%emt 0:06:51]} 16. Nd2 {[%emt 0:06:45]} Qh6 {[%emt 0:04:40]} 17. Ndxe4 {[%emt 0:08:05]} dxe4 {[%emt 0:06:50]} 18. Qe2 {[%emt 0:05:14]} Qh4 {[%emt 0:05:43]} 19. Rfd1 {[%emt 0:06:31]} Re6 {[%emt 0:05:04]} 20. Nf1 {[%emt 0:11:07]} Bxh2+ {[%emt 0:02:15]} 21. Nxh2 {[%emt 0:00:05]} Rh6 {[%emt 0:00:06]} 22. Qg4 {[%emt 0:00:21]} Qxh2+ {[%emt 0:00:18]} 23. Kf1 {[%emt 0:00:03]} Nf6 {[%emt 0:05:52]} 24. Qf4 {[%emt 0:02:01]} Qh1+ {[%emt 0:03:28]} 25. Ke2 {[%emt 0:00:10]} Qxg2 {[%emt 0:00:13]} 26. Rxc7 {[%emt 0:02:59]} Rxc7 {[%emt 0:03:52]} 27. Qxc7 {[%emt 0:00:20]} Qf3+ {[%emt 0:00:06]} 28. Kd2 {[%emt 0:00:15]} Qxf2+ {[%emt 0:00:06]} 29. Kc1 {[%emt 0:00:16]} Qxe3+ {[%emt 0:00:05]} 30. Rd2 {[%emt 0:00:16]} Ne8 {[%emt 0:01:03]} 31. Qe7 {[%emt 0:03:07]} Bc6 {[%emt 0:04:33]} 32. Kc2 {[%emt 0:06:00]} Re6 {[%emt 0:01:51]} 33. Qd8 {[%emt 0:00:26]} Bb5 {[%emt 0:03:50]} 34. Bc3 {[%emt 0:00:30]} Qf4 {[%emt 0:02:55]} 35. d5 {[%emt 0:00:42]} Rd6 {[%emt 0:01:54]} 36. Qb8 {[%emt 0:00:40]} Qg5 {[%emt 0:01:31]} 37. a4 {[%emt 0:01:53]} Bd3+ {[%emt 0:01:59]} 38. Kb2 {[%emt 0:00:16]} Qd8 {[%emt 0:00:19]} 39. Qxd8 {[%emt 0:01:41]} Rxd8 {[%emt 0:00:05]} 40. Bxd3 {[%emt 0:00:04]} exd3 {[%emt 0:00:04]} 41. Rxd3 {[%emt 0:00:06]} Nc7 {[%emt 0:00:34]} 42. d6 {[%emt 0:00:36]} Ne6 {[%emt 0:00:15]} 43. Be5 {[%emt 0:00:44]} f6 {[%emt 0:01:12]} 44. Bh2 {[%emt 0:00:12]} Kf7 {[%emt 0:00:48]} 45. b4 {[%emt 0:01:10]} g5 {[%emt 0:00:50]} 46. Rh3 {[%emt 0:01:08]} Kg6 {[%emt 0:00:27]} 47. Re3 {[%emt 0:00:10]} Nf4 {[%emt 0:00:47]} 48. Re7 {[%emt 0:01:05]} Rxd6 {[%emt 0:00:19]} 49. Kc3 {[%emt 0:00:46]} h5 {[%emt 0:00:42]} 50. Ra7 {[%emt 0:00:19]} b5 {[%emt 0:00:27]} 51. axb5 {[%emt 0:00:07]} axb5 {[%emt 0:00:05]} 52. Rb7 {[%emt 0:00:06]} Rd5 {[%emt 0:00:22]} 53. Kb3 {[%emt 0:00:12]} Kf5 {[%emt 0:00:21]} 54. Bg1 {[%emt 0:00:04]} Ne6 {[%emt 0:00:34]} 0-1

[Event "Lliga Catalana Relegation 2024"]
[Site "Catalonia"]
[Date "2024.04.06"]
[Round "1.5"]
[White "Fernandez Lozano, Francesc"]
[Black "Ventura Bolet, Alexandre"]
[Result "0-1"]
[ECO "B03"]
[WhiteElo "2068"]
[BlackElo "2250"]
[Annotator "RC"]
[PlyCount "102"]
[EventDate "2024.01.18"]
[EventType "team-tourn"]
[EventCountry "ESP"]
[SourceTitle "playchess.com"]
[Source "ChessBase"]
[SourceQuality "1"]
[TimeControl "5400+30"]

1. e4 {[%emt 0:00:03]} Nf6 {[%emt 0:00:09]} 2. e5 {[%emt 0:00:29]} Nd5 {[%emt 0:00:06]} 3. d4 {[%emt 0:00:27]} d6 {[%emt 0:00:09]} 4. c4 {[%emt 0:00:39]} Nb6 {[%emt 0:00:06]} 5. f4 {[%emt 0:00:09]} g6 {[%emt 0:00:16]} 6. Nc3 {[%emt 0:00:56]} Bg7 {[%emt 0:00:09]} 7. Be3 {[%emt 0:00:48]} Be6 {[%emt 0:00:35]} 8. d5 {[%emt 0:02:10]} Bc8 {[%emt 0:00:32]} 9. Nf3 {[%emt 0:00:15]} O-O {[%emt 0:01:11]} 10. h4 {[%emt 0:00:58]} Bg4 {[%emt 0:03:19]} 11. h5 {[%emt 0:03:10]} N8d7 {[%emt 0:50:23]} 12. hxg6 {[%emt 0:24:49]} fxg6 {[%emt 0:00:56]} 13. Qd2 {[%emt 0:01:32]} dxe5 {[%emt 0:05:20]} 14. O-O-O {[%emt 0:06:45]} exf4 {[%emt 0:09:18]} 15. Bd4 {[%emt 0:05:12]} Bxf3 {[%emt 0:04:23]} 16. gxf3 {[%emt 0:02:19]} Nf6 {[%emt 0:12:05]} 17. Qd3 {[%emt 0:11:29]} c5 {[%emt 0:03:58]} 18. Bf2 {[%emt 0:04:37]} Nbd7 {[%emt 0:02:17]} 19. Bh3 {[%emt 0:00:21]} Ne5 {[%emt 0:02:29]} 20. Be6+ {[%emt 0:00:10]} Kh8 {[%emt 0:01:04]} 21. Qe2 {[%emt 0:00:03]} Nfd7 {[%emt 0:00:33]} 22. Bh4 {[%emt 0:02:49]} Bf6 {[%emt 0:01:08]} 23. Ne4 {[%emt 0:04:30]} Kg7 {[%emt 0:00:53]} 24. Bg5 {[%emt 0:02:58]} h5 {[%emt 0:00:36]} 25. Rdg1 {[%emt 0:00:19]} Rh8 {[%emt 0:00:32]} 26. Bxf4 {[%emt 0:01:12]} Nf8 {[%emt 0:00:25]} 27. Ng5 {[%emt 0:03:18]} Qc7 {[%emt 0:00:36]} 28. Qe4 {[%emt 0:03:07]} Nd3+ {[%emt 0:00:18]} 29. Qxd3 {[%emt 0:00:48]} Qxf4+ {[%emt 0:00:03]} 30. Qd2 {[%emt 0:01:03]} Bxg5 {[%emt 0:00:56]} 31. Rxg5 {[%emt 0:00:08]} Qxd2+ {[%emt 0:00:33]} 32. Kxd2 {[%emt 0:00:02]} Nxe6 {[%emt 0:00:23]} 33. dxe6 {[%emt 0:00:08]} Rad8+ {[%emt 0:00:24]} 34. Kc3 {[%emt 0:00:19]} Rd6 {[%emt 0:00:24]} 35. Rxc5 {[%emt 0:06:16]} Rf8 {[%emt 0:00:07]} 36. Rh3 {[%emt 0:01:23]} Rxe6 {[%emt 0:00:28]} 37. Rd5 {[%emt 0:00:49]} Rd6 {[%emt 0:01:09]} 38. Re5 {[%emt 0:02:00]} e6 {[%emt 0:00:39]} 39. Rg3 {[%emt 0:00:03]} Rf5 {[%emt 0:00:24]} 40. Re1 {[%emt 0:00:39]} Kf6 {[%emt 0:00:18]} 41. b4 {[%emt 0:00:02]} h4 {[%emt 0:00:36]} 42. Rh3 {[%emt 0:00:02]} g5 {[%emt 0:00:10]} 43. a4 {[%emt 0:00:41]} Rf4 {[%emt 0:00:38]} 44. Rc1 {[%emt 0:00:52]} Rdd4 {[%emt 0:00:44]} 45. Kb3 {[%emt 0:00:02]} Rd3+ {[%emt 0:00:35]} 46. Rc3 {[%emt 0:00:01]} Rd1 {[%emt 0:00:38]} 47. a5 {[%emt 0:00:45]} a6 {[%emt 0:00:18]} 48. c5 {[%emt 0:00:18]} Rb1+ {[%emt 0:00:12]} 49. Kc2 {[%emt 0:00:22]} Rbxb4 {[%emt 0:00:10]} 50. c6 {[%emt 0:00:02]} bxc6 {[%emt 0:00:17]} 51. Rxc6 {[%emt 0:00:02]} Rbc4+ {[%emt 0:00:13]} 0-1

[Event "Lliga Catalana Relegation 2024"]
[Site "Catalonia"]
[Date "2024.03.16"]
[Round "1.5"]
[White "Nunez Colome, David"]
[Black "Sort Sererols, Josep"]
[Result "1/2-1/2"]
[ECO "B32"]
[WhiteElo "1995"]
[BlackElo "2047"]
[Annotator "RC"]
[PlyCount "143"]
[EventDate "2024.01.18"]
[EventType "team-tourn"]
[EventCountry "ESP"]
[SourceTitle "playchess.com"]
[Source "ChessBase"]
[SourceQuality "1"]
[TimeControl "5400+30"]

1. e4 {[%emt 0:05:14]} c5 {[%emt 0:00:23]} 2. Nf3 {[%emt 0:00:24]} Nc6 {[%emt 0:00:16]} 3. d4 {[%emt 0:00:07]} cxd4 {[%emt 0:00:12]} 4. Nxd4 {[%emt 0:00:11]} e5 {[%emt 0:00:21]} 5. Nb5 {[%emt 0:01:19]} d6 {[%emt 0:00:33]} 6. N1c3 {[%emt 0:02:36]} a6 {[%emt 0:00:45]} 7. Na3 {[%emt 0:00:34]} Be7 {[%emt 0:00:48]} 8. Nd5 {[%emt 0:11:58]} Nf6 {[%emt 0:00:28]} 9. Nxf6+ {[%emt 0:01:00]} Bxf6 {[%emt 0:00:07]} 10. Nc4 {[%emt 0:03:12]} O-O {[%emt 0:00:58]} 11. c3 {[%emt 0:22:36]} b5 {[%emt 0:19:21]} 12. Ne3 {[%emt 0:07:26]} Be6 {[%emt 0:05:44]} 13. Be2 {[%emt 0:04:33]} Rb8 {[%emt 0:04:20]} 14. O-O {[%emt 0:01:55]} Qd7 {[%emt 0:06:24]} 15. a4 {[%emt 0:04:17]} Bg5 {[%emt 0:10:24]} 16. axb5 {[%emt 0:11:38]} axb5 {[%emt 0:00:09]} 17. Nd5 {[%emt 0:01:05]} Bxc1 {[%emt 0:00:20]} 18. Rxc1 {[%emt 0:00:21]} Ne7 {[%emt 0:03:53]} 19. Nxe7+ {[%emt 0:03:48]} Qxe7 {[%emt 0:00:11]} 20. Qd2 {[%emt 0:01:09]} Rfd8 {[%emt 0:00:46]} 21. Ra1 {[%emt 0:03:34]} Qc7 {[%emt 0:02:36]} 22. Qe3 {[%emt 0:02:29]} Bc4 {[%emt 0:01:22]} 23. Rfd1 {[%emt 0:01:54]} h6 {[%emt 0:04:18]} 24. h3 {[%emt 0:00:46]} Rb7 {[%emt 0:02:13]} 25. Ra6 {[%emt 0:02:13]} Bb3 {[%emt 0:08:37]} 26. Rda1 {[%emt 0:02:26]} Bc4 {[%emt 0:15:32]} 27. Rd1 {[%emt 0:01:59]} Bb3 {[%emt 0:01:10]} 28. Rda1 {[%emt 0:00:56]} Kh7 {[%emt 0:00:46]} 29. Ra7 {[%emt 0:01:22]} Ba4 {[%emt 0:00:59]} 30. Rxb7 {[%emt 0:00:30]} Qxb7 {[%emt 0:00:43]} 31. Bd1 {[%emt 0:00:48]} d5 {[%emt 0:00:46]} 32. exd5 {[%emt 0:00:52]} Qxd5 {[%emt 0:00:10]} 33. Bxa4 {[%emt 0:00:33]} bxa4 {[%emt 0:00:02]} 34. Re1 {[%emt 0:00:39]} f6 {[%emt 0:00:34]} 35. Qe4+ {[%emt 0:00:31]} Qxe4 {[%emt 0:00:24]} 36. Rxe4 {[%emt 0:00:01]} Rd1+ {[%emt 0:00:22]} 37. Kh2 {[%emt 0:00:01]} Rd2 {[%emt 0:00:09]} 38. Rxa4 {[%emt 0:00:46]} Rxb2 {[%emt 0:00:10]} 39. Kg3 {[%emt 0:00:30]} Rc2 {[%emt 0:00:19]} 40. Rc4 {[%emt 0:00:12]} h5 {[%emt 0:01:04]} 41. h4 {[%emt 0:00:55]} Kg6 {[%emt 0:00:55]} 42. Rc7 {[%emt 0:00:39]} Kf5 {[%emt 0:00:12]} 43. Kf3 {[%emt 0:01:15]} g6 {[%emt 0:01:55]} 44. g3 {[%emt 0:00:31]} Rc1 {[%emt 0:03:14]} 45. Rc6 {[%emt 0:00:30]} g5 {[%emt 0:00:22]} 46. Rc5 {[%emt 0:00:22]} gxh4 {[%emt 0:01:46]} 47. gxh4 {[%emt 0:00:02]} Rh1 {[%emt 0:00:35]} 48. Rc4 {[%emt 0:01:04]} Rh3+ {[%emt 0:00:41]} 49. Kg2 {[%emt 0:00:18]} Rd3 {[%emt 0:00:10]} 50. f3 {[%emt 0:00:28]} Rd6 {[%emt 0:00:56]} 51. Kg3 {[%emt 0:00:24]} Ke6 {[%emt 0:00:18]} 52. Rc8 {[%emt 0:00:37]} f5 {[%emt 0:00:52]} 53. c4 {[%emt 0:00:30]} f4+ {[%emt 0:00:53]} 54. Kf2 {[%emt 0:00:08]} Rd2+ {[%emt 0:00:18]} 55. Kg1 {[%emt 0:00:25]} Rc2 {[%emt 0:00:41]} 56. Rc7 {[%emt 0:01:17]} e4 {[%emt 0:03:41]} 57. fxe4 {[%emt 0:00:17]} Ke5 {[%emt 0:00:03]} 58. Rc5+ {[%emt 0:00:46]} Kxe4 {[%emt 0:00:15]} 59. Rxh5 {[%emt 0:00:09]} Rxc4 {[%emt 0:01:15]} 60. Rh8 {[%emt 0:00:44]} Kf3 {[%emt 0:00:35]} 61. h5 {[%emt 0:00:36]} Rc1+ {[%emt 0:00:15]} 62. Kh2 {[%emt 0:00:01]} Rc2+ {[%emt 0:01:23]} 63. Kg1 {[%emt 0:00:15]} Rg2+ {[%emt 0:00:09]} 64. Kf1 {[%emt 0:00:39]} Rh2 {[%emt 0:00:13]} 65. Kg1 {[%emt 0:00:11]} Rh4 {[%emt 0:00:25]} 66. h6 {[%emt 0:00:29]} Rh5 {[%emt 0:00:41]} 67. Rh7 {[%emt 0:00:28]} Rg5+ {[%emt 0:00:17]} 68. Kf1 {[%emt 0:00:10]} Rh5 {[%emt 0:01:11]} 69. Kg1 {[%emt 0:00:06]} Rh4 {[%emt 0:00:36]} 70. Rh8 {[%emt 0:00:10]} Rh3 {[%emt 0:00:36]} 71. Rh7 {[%emt 0:00:08]} Rh5 {[%emt 0:00:29]} 72. Rh8 {[%emt 0:00:07]} 1/2-1/2

[Event "Lliga Catalana Relegation 2024"]
[Site "Catalonia"]
[Date "2024.03.16"]
[Round "1.6"]
[White "Montes Molina, Ivan"]
[Black "Martin Capitan, Feliciano"]
[Result "1-0"]
[ECO "C56"]
[WhiteElo "2100"]
[BlackElo "2038"]
[Annotator "NA RC"]
[PlyCount "91"]
[EventDate "2024.01.18"]
[EventType "team-tourn"]
[EventCountry "ESP"]
[SourceTitle "playchess.com"]
[Source "ChessBase"]
[SourceQuality "1"]
[TimeControl "5400+30"]

1. e4 {[%emt 0:00:03]} e5 {[%emt 0:00:15]} 2. Nf3 {[%emt 0:00:12]} Nc6 {[%emt 0:00:12]} 3. d4 {[%emt 0:00:10]} exd4 {[%emt 0:00:34]} 4. Bc4 {[%emt 0:00:25]} Nf6 {[%emt 0:00:32]} 5. e5 {[%emt 0:00:11]} d5 {[%emt 0:00:34]} 6. Bb5 {[%emt 0:00:09]} Ne4 {[%emt 0:00:28]} 7. Nxd4 {[%emt 0:00:10]} Bd7 {[%emt 0:01:17]} 8. Bxc6 {[%emt 0:00:14]} bxc6 {[%emt 0:00:02]} 9. O-O {[%emt 0:00:12]} Bc5 {[%emt 0:00:19]} 10. f3 {[%emt 0:00:09]} Ng5 {[%emt 0:00:36]} 11. Be3 {[%emt 0:00:13]} Bb6 {[%emt 0:01:10]} 12. f4 {[%emt 0:00:33]} Ne4 {[%emt 0:00:24]} 13. Nd2 {[%emt 0:00:34]} c5 {[%emt 0:03:27]} 14. N4f3 {[%emt 0:00:18]} Nxd2 {[%emt 0:01:13]} 15. Qxd2 {[%emt 0:00:08]} d4 {[%emt 0:04:13]} 16. Bf2 {[%emt 0:00:05]} Bc6 {[%emt 0:00:32]} 17. f5 {[%emt 0:01:07]} Bxf3 {[%emt 0:12:26]} 18. gxf3 {[%emt 0:00:57]} Qd5 {[%emt 0:08:27]} 19. Bh4 {[%emt 0:00:18]} Kd7 {[%emt 0:01:05]} 20. Bg3 {[%emt 0:01:26]} Rad8 {[%emt 0:03:51]} 21. b3 {[%emt 0:15:59]} c4 {[%emt 0:08:20]} 22. bxc4 {[%emt 0:01:47]} Qxc4 {[%emt 0:00:24]} 23. Qd3 {[%emt 0:00:30]} Qxd3 {[%emt 0:04:14]} 24. cxd3 {[%emt 0:00:06]} Ba5 {[%emt 0:00:21]} 25. Rac1 {[%emt 0:01:20]} Bc3 {[%emt 0:00:49]} 26. Be1 {[%emt 0:00:17]} Bb2 {[%emt 0:10:26]} 27. Rc4 {[%emt 0:01:07]} c5 {[%emt 0:01:14]} 28. Rxc5 {[%emt 0:02:30]} Rc8 {[%emt 0:03:45]} 29. Rd5+ {[%emt 0:08:23]} Kc6 {[%emt 0:02:42]} 30. Rd6+ {[%emt 0:00:33]} Kc5 {[%emt 0:00:29]} 31. Rd7 {[%emt 0:00:38]} Rhf8 {[%emt 0:01:57]} 32. Rf2 {[%emt 0:04:50]} Bc3 {[%emt 0:00:01]} 33. Bxc3 {[%emt 0:00:37]} dxc3 {[%emt 0:00:01]} 34. Rc2 {[%emt 0:00:22]} Kb6 {[%emt 0:00:35]} 35. Kf2 {[%emt 0:02:00]} a5 {[%emt 0:00:02]} 36. a4 {[%emt 0:01:24]} Rc5 {[%emt 0:00:06]} 37. f4 {[%emt 0:01:00]} Kc6 {[%emt 0:00:04]} 38. Rd6+ {[%emt 0:00:23]} Kc7 {[%emt 0:00:02]} 39. Ke3 {[%emt 0:00:27]} Rb8 {[%emt 0:00:06]} 40. Kd4 {[%emt 0:00:24]} Rb2 {[%emt 0:00:59]} 41. Rc1 {[%emt 0:00:39]} Rc6 {[%emt 0:01:45]} 42. Rxc6+ {[%emt 0:00:10]} Kxc6 {[%emt 0:00:01]} 43. Rxc3+ {[%emt 0:00:09]} Kb6 {[%emt 0:00:00]} 44. e6 {[%emt 0:01:01]} fxe6 {[%emt 0:00:08]} 45. fxe6 {[%emt 0:00:04]} Rxh2 {[%emt 0:00:15]} 46. Kd5 {[%emt 0:00:06]} 1-0

[Event "Lliga Catalana Relegation 2024"]
[Site "Catalonia"]
[Date "2024.04.06"]
[Round "1.7"]
[White "Garcia Marin, Guillem"]
[Black "Cano Sevilla, Ivan"]
[Result "1-0"]
[ECO "D11"]
[WhiteElo "2058"]
[BlackElo "2145"]
[Annotator "RC"]
[PlyCount "53"]
[EventDate "2024.01.18"]
[EventType "team-tourn"]
[EventCountry "ESP"]
[SourceTitle "playchess.com"]
[Source "ChessBase"]
[SourceQuality "1"]
[TimeControl "5400+30"]

1. d4 {[%emt 0:00:03]} d5 {[%emt 0:00:12]} 2. Nf3 {[%emt 0:00:08]} Nf6 {[%emt 0:00:06]} 3. g3 {[%emt 0:00:09]} c6 {[%emt 0:00:34]} 4. Bg2 {[%emt 0:00:24]} Bf5 {[%emt 0:00:12]} 5. c4 {[%emt 0:00:29]} e6 {[%emt 0:00:55]} 6. Nc3 {[%emt 0:00:33]} Nbd7 {[%emt 0:00:15]} 7. Qb3 {[%emt 0:01:09]} Qb6 {[%emt 0:03:10]} 8. c5 {[%emt 0:00:39]} Qxb3 {[%emt 0:20:11]} 9. axb3 {[%emt 0:00:14]} b6 {[%emt 0:02:27]} 10. b4 {[%emt 0:05:09]} a5 {[%emt 0:04:13]} 11. b5 {[%emt 0:13:48]} cxb5 {[%emt 0:02:48]} 12. c6 {[%emt 0:03:13]} Nb8 {[%emt 0:00:29]} 13. Nxb5 {[%emt 0:02:44]} Bb4+ {[%emt 0:00:11]} 14. Bd2 {[%emt 0:02:33]} Bxd2+ {[%emt 0:06:14]} 15. Kxd2 {[%emt 0:01:34]} Ne4+ {[%emt 0:00:11]} 16. Ke3 {[%emt 0:01:27]} Ke7 {[%emt 0:08:57]} 17. c7 {[%emt 0:07:55]} Nd7 {[%emt 0:02:02]} 18. Ne5 {[%emt 0:03:40]} Nxe5 {[%emt 0:00:54]} 19. dxe5 {[%emt 0:00:17]} Nc5 {[%emt 0:03:27]} 20. Nd6 {[%emt 0:03:37]} Nb3 {[%emt 0:04:37]} 21. Ra3 {[%emt 0:02:16]} d4+ {[%emt 0:01:07]} 22. Kf4 {[%emt 0:05:03]} g5+ {[%emt 0:03:40]} 23. Kxg5 {[%emt 0:00:31]} Rag8+ {[%emt 0:00:09]} 24. Kh4 {[%emt 0:04:34]} Rg4+ {[%emt 0:00:15]} 25. Kh3 {[%emt 0:00:49]} Rg6+ {[%emt 0:08:13]} 26. Nxf5+ {[%emt 0:00:53]} exf5 {[%emt 0:00:03]} 27. Bb7 {[%emt 0:00:28]} 1-0

[Event "Lliga Catalana Relegation 2024"]
[Site "Catalonia"]
[Date "2024.03.16"]
[Round "1.7"]
[White "Panades Catarineu, Oriol"]
[Black "Calvo Bures, Marc"]
[Result "1/2-1/2"]
[ECO "A34"]
[WhiteElo "2021"]
[BlackElo "2043"]
[Annotator "NA RC"]
[PlyCount "97"]
[EventDate "2024.01.18"]
[EventType "team-tourn"]
[EventCountry "ESP"]
[SourceTitle "playchess.com"]
[Source "ChessBase"]
[SourceQuality "1"]
[TimeControl "5400+30"]

1. Nf3 {[%emt 0:05:46]} Nf6 {[%emt 0:00:40]} 2. c4 {[%emt 0:00:33]} e6 {[%emt 0:01:28]} 3. g3 {[%emt 0:00:17]} d5 {[%emt 0:00:42]} 4. d4 {[%emt 0:00:22]} Be7 {[%emt 0:02:20]} 5. Bg2 {[%emt 0:00:27]} O-O {[%emt 0:00:52]} 6. O-O {[%emt 0:02:53]} c5 {[%emt 0:08:54]} 7. cxd5 {[%emt 0:00:53]} Nxd5 {[%emt 0:00:10]} 8. Nc3 {[%emt 0:02:57]} Nxc3 {[%emt 0:02:01]} 9. bxc3 {[%emt 0:00:34]} Nc6 {[%emt 0:00:29]} 10. Rb1 {[%emt 0:09:03]} Qa5 {[%emt 0:04:20]} 11. Qb3 {[%emt 0:02:40]} Rd8 {[%emt 0:06:06]} 12. Rd1 {[%emt 0:05:27]} Bd7 {[%emt 0:05:03]} 13. Bf4 {[%emt 0:21:23]} b6 {[%emt 0:18:35]} 14. dxc5 {[%emt 0:08:17]} Qxc5 {[%emt 0:02:27]} 15. Nd4 {[%emt 0:28:07]} Rac8 {[%emt 0:04:09]} 16. Nxc6 {[%emt 0:04:37]} Bxc6 {[%emt 0:00:10]} 17. Be3 {[%emt 0:00:44]} Qa5 {[%emt 0:09:15]} 18. Rxd8+ {[%emt 0:00:39]} Bxd8 {[%emt 0:00:08]} 19. Qc4 {[%emt 0:01:13]} Bb7 {[%emt 0:01:28]} 20. Qd3 {[%emt 0:00:36]} Bd5 {[%emt 0:03:55]} 21. Bxd5 {[%emt 0:01:07]} exd5 {[%emt 0:02:35]} 22. Qf5 {[%emt 0:01:35]} Qxa2 {[%emt 0:04:10]} 23. Rd1 {[%emt 0:00:02]} Qc4 {[%emt 0:00:48]} 24. Qxd5 {[%emt 0:00:54]} Bf6 {[%emt 0:02:08]} 25. Qxc4 {[%emt 0:00:47]} Rxc4 {[%emt 0:00:07]} 26. Rd7 {[%emt 0:00:02]} Ra4 {[%emt 0:03:04]} 27. Bd4 {[%emt 0:00:04]} h6 {[%emt 0:00:05]} 28. Bxf6 {[%emt 0:00:07]} gxf6 {[%emt 0:00:05]} 29. Kg2 {[%emt 0:00:25]} b5 {[%emt 0:00:48]} 30. Rb7 {[%emt 0:00:06]} a6 {[%emt 0:00:10]} 31. Rb6 {[%emt 0:00:11]} Kg7 {[%emt 0:00:15]} 32. e4 {[%emt 0:01:23]} Ra3 {[%emt 0:02:26]} 33. f3 {[%emt 0:00:48]} Rxc3 {[%emt 0:01:36]} 34. Rxa6 {[%emt 0:00:03]} Rc2+ {[%emt 0:00:11]} 35. Kh3 {[%emt 0:00:11]} Rf2 {[%emt 0:00:28]} 36. f4 {[%emt 0:00:32]} Re2 {[%emt 0:00:09]} 37. Rb6 {[%emt 0:03:15]} Rb2 {[%emt 0:00:24]} 38. Kg4 {[%emt 0:00:00]} b4 {[%emt 0:01:25]} 39. Kf5 {[%emt 0:00:00]} b3 {[%emt 0:00:47]} 40. h4 {[%emt 0:00:27]} h5 {[%emt 0:01:31]} 41. Rxf6 {[%emt 0:00:11]} Rg2 {[%emt 0:00:11]} 42. Rb6 {[%emt 0:00:28]} Rxg3 {[%emt 0:00:08]} 43. e5 {[%emt 0:00:23]} Kf8 {[%emt 0:00:29]} 44. Rb7 {[%emt 0:00:53]} Ke8 {[%emt 0:01:07]} 45. Kf6 {[%emt 0:00:58]} Rg6+ {[%emt 0:02:20]} 46. Kf5 {[%emt 0:00:01]} Rg3 {[%emt 0:00:18]} 47. Kf6 {[%emt 0:00:49]} Rg6+ {[%emt 0:01:19]} 48. Kf5 {[%emt 0:00:01]} Rg3 {[%emt 0:00:11]} 49. Kf6 {[%emt 0:01:49]} 1/2-1/2